[Event "Romanian-ch Youth Girls U16 2024"]
[Site "Eforie Nord"]
[Date "2024.04.12"]
[Round "1.1"]
[White "Maria, Lia-Alexandra"]
[Black "Stan, Oana-Bianca"]
[Result "1-0"]
[ECO "E17"]
[WhiteElo "1924"]
[BlackElo "1623"]
[Annotator "TA"]
[PlyCount "55"]
[EventDate "2024.04.10"]
[EventType "swiss"]
[EventCountry "ROU"]
[SourceTitle "playchess.com"]
[Source "ChessBase"]
[SourceQuality "1"]
[TimeControl "5400+30"]

{[%evp 14,55,30,-18,-22,-37,-50,-59,-45,-67,-30,-20,-3,-40,-38,-52,-32,-22,-19,-40,-41,-57,-49,-56,-31,-29,-49,-31,-27,-40,69,79,85,89,74,5,88,89,104,64,901,901,880,878]} 1. c4 {[%emt 0:00:13]} Nf6 {[%emt 0:00:06]} 2. Nf3 {[%emt 0:00:09]} e6 {[%emt 0:00:07]} 3. g3 {[%emt 0:00:17]} d5 {[%emt 0:02:20]} 4. Bg2 {[%emt 0:00:23]} Be7 {[%emt 0:03:50]} 5. O-O {[%emt 0:01:02]} O-O {[%emt 0:00:21]} 6. d4 {[%emt 0:07:37]} b6 {[%emt 0:06:55]} 7. Qc2 {[%emt 0:10:29]} Bb7 {[%emt 0:06:31]} 8. Ne5 {[%emt 0:11:29]} (8. cxd5 {is superior.} Nxd5 9. Rd1) 8... c5 $11 {[%emt 0:07:43]} 9. e3 {[%emt 0:08:02]} Qc7 {[%emt 0:11:59]} 10. b3 {[%emt 0:01:53]} Rd8 {[%emt 0:04:56] Black is slightly better.} 11. Bb2 {[%emt 0:01:53]} Nbd7 {[%emt 0:04:30]} 12. Nxd7 {[%emt 0:05:37]} Rxd7 {[%emt 0:02:34]} 13. Nd2 {[%emt 0:02:17]} cxd4 {[%emt 0:06:17]} (13... dxc4 {looks sharper.} 14. bxc4 Bxg2 15. Kxg2 Qb7+) 14. exd4 {[%emt 0:00:45]} h6 {[%emt 0:02:43]} 15. Rac1 {[%emt 0:04:15]} Rc8 {[%emt 0:01:33]} 16. Rfe1 {[%emt 0:08:33]} dxc4 {[%emt 0:04:38] Threatens to win with ...Bxg2.} 17. bxc4 {[%emt 0:04:42]} Bxg2 {[%emt 0:02:30]} 18. Kxg2 {[%emt 0:00:23]} Bb4 {[%emt 0:09:43]} 19. a3 {[%emt 0:03:26]} Bxd2 {[%emt 0:03:49]} 20. Qxd2 {[%emt 0:00:09][%cal Od4d5]} Qb7+ {[%emt 0:00:20]} 21. f3 {[%emt 0:01:48][%cal Od4d5]} Rdc7 {[%emt 0:04:41] [#]} (21... Rc6 $15) 22. d5 $1 $14 {[%emt 0:02:51] d6 is the strong threat.} Rxc4 {[%emt 0:06:58]} (22... Nd7 23. dxe6) 23. Rxc4 {[%emt 0:03:31]} Rxc4 {[%emt 0:00:49]} 24. dxe6 {[%emt 0:01:02]} (24. Bxf6 $16 gxf6 25. dxe6 fxe6 26. Qxh6 (26. Rxe6 Qc8 $11)) 24... fxe6 {[%emt 0:01:04]} (24... Qd5 $11 25. exf7+ Kxf7) 25. Bxf6 $1 $16 {[%emt 0:07:19]} (25. Rxe6 $6 Qd5 26. Rd6 Qxd2+ 27. Rxd2 Kf7 $11) 25... gxf6 {[%emt 0:00:35] KQR-KQR} 26. Qd3 {[%emt 0:07:17]} Rc5 {[%emt 0:03:16][%mdl 8192]} ({But not} 26... Rc6 $2 27. Qg6+ Kf8 28. Qxf6+ (28. Qxh6+ Qg7 $16) 28... Qf7 29. Qxh6+ Qg7 30. Qf4+ Qf7 31. Qb4+ Ke8 32. Qe4 $18) (26... Rc8 $14) 27. Rxe6 $18 {[%emt 0:00:46]} Qf7 {[%emt 0:00:50] [#] Dodges Qg6+} 28. Qd8+ $1 {[%emt 0:00:12] Weighted Error Value: White=0.21 (precise) /Black=0.27 (precise) .  Loses game:     	---       	Black=1      Mistake:       	White=1     	Black=2      Inaccurate:     	White=2     	Black=1      OK:         	White=1     	Black=5      Best:        	White=1     	---        Strong:       	White=1     	---        Brilliant:      	White=1     	---} 1-0

[Event "Romanian-ch Youth Girls U16 2024"]
[Site "Eforie Nord"]
[Date "2024.04.12"]
[Round "1.2"]
[White "Dumitrache, Elisa-Andreea"]
[Black "Criveanu, Maria"]
[Result "0-1"]
[ECO "C30"]
[WhiteElo "1613"]
[BlackElo "1762"]
[Annotator "NA RC COMBH"]
[PlyCount "62"]
[EventDate "2024.04.10"]
[EventType "swiss"]
[EventCountry "ROU"]
[SourceTitle "playchess.com"]
[Source "ChessBase"]
[SourceQuality "1"]
[TimeControl "5400+30"]

1. e4 {[%emt 0:00:03]} e5 {[%emt 0:00:06]} 2. Nc3 {[%emt 0:00:12]} Bc5 {[%emt 0:00:19]} 3. f4 {[%emt 0:00:16]} d6 {[%emt 0:00:10]} 4. Nf3 {[%emt 0:00:10]} Nf6 {[%emt 0:00:18]} 5. Bc4 {[%emt 0:01:56]} O-O {[%emt 0:02:38]} 6. d3 {[%emt 0:01:04]} exf4 {[%emt 0:01:57]} 7. Bxf4 {[%emt 0:01:43]} Nc6 {[%emt 0:01:27]} 8. Ne2 {[%emt 0:30:22]} Bg4 {[%emt 0:06:33]} 9. Ng3 {[%emt 0:09:32]} Re8 {[%emt 0:04:12]} 10. Bb5 {[%emt 0:09:07]} d5 {[%emt 0:07:43]} 11. Bxc6 {[%emt 0:09:31]} bxc6 {[%emt 0:00:29]} 12. e5 {[%emt 0:00:18]} Bd4 {[%emt 0:01:59]} 13. Qc1 {[%emt 0:09:57]} Bxf3 {[%emt 0:02:02]} 14. gxf3 {[%emt 0:00:34]} Bxe5 {[%emt 0:00:22]} 15. O-O {[%emt 0:01:19]} Qd7 {[%emt 0:10:03]} 16. c3 {[%emt 0:02:12]} c5 {[%emt 0:06:52]} 17. Kh1 {[%emt 0:01:28]} Qh3 {[%emt 0:05:08]} 18. Rf2 {[%emt 0:02:10]} Nh5 {[%emt 0:07:58]} 19. Nxh5 {[%emt 0:00:50]} Qxh5 {[%emt 0:00:08]} 20. Bxe5 {[%emt 0:02:19]} Rxe5 {[%emt 0:02:25]} 21. Qf4 {[%emt 0:02:03]} Rae8 {[%emt 0:02:59]} 22. Rg1 {[%emt 0:01:41]} Re1 {[%emt 0:06:27]} 23. Rfg2 {[%emt 0:02:54]} g6 {[%emt 0:02:41]} 24. Qg3 {[%emt 0:03:12]} R1e3 {[%emt 0:02:43]} 25. Qxc7 {[%emt 0:00:36]} Qxf3 {[%emt 0:01:26]} 26. Qxc5 {[%emt 0:01:18]} Re2 {[%emt 0:02:01]} 27. Qc6 {[%emt 0:03:22]} R8e6 {[%emt 0:01:14]} 28. Qc8+ {[%emt 0:01:23]} Kg7 {[%emt 0:00:14]} 29. Qc5 {[%emt 0:00:22]} Rxg2 {[%emt 0:00:35]} 30. Qd4+ {[%emt 0:00:16]} Kg8 {[%emt 0:00:28]} 31. Rxg2 {[%emt 0:00:49]} Re1+ {[%emt 0:00:15]} 0-1

[Event "Romanian-ch Youth Girls U16 2024"]
[Site "Eforie Nord"]
[Date "2024.04.13"]
[Round "2.1"]
[White "Rusu, Anastasia"]
[Black "Maria, Lia-Alexandra"]
[Result "0-1"]
[ECO "B84"]
[WhiteElo "1590"]
[BlackElo "1924"]
[Annotator "TA"]
[PlyCount "76"]
[EventDate "2024.04.10"]
[EventType "swiss"]
[EventCountry "ROU"]
[SourceTitle "playchess.com"]
[Source "ChessBase"]
[SourceQuality "1"]
[TimeControl "5400+30"]

{[%evp 25,76,-28,-38,-42,0,-29,-21,-23,0,0,0,-71,-77,-66,-73,-83,-84,-73,-73,-75,-72,-83,-41,-52,0,-35,-37,-28,-12,-41,-28,-69,-38,-100,-95,-114,-107,-181,-176,-181,-175,-554,-566,-1402,-1371,-29987,-29988,-29988,-29989,-29995,-29993,-29997,-29998]} 1. e4 {[%emt 0:00:03]} c5 {[%emt 0:00:31]} 2. Nf3 {[%emt 0:00:14]} e6 {[%emt 0:00:16]} 3. d4 {[%emt 0:00:17]} cxd4 {[%emt 0:00:15]} 4. Nxd4 {[%emt 0:00:02]} a6 {[%emt 0:00:20]} 5. Nc3 {[%emt 0:00:15]} Qc7 {[%emt 0:00:15]} 6. Be2 {[%emt 0:01:13]} Nf6 {[%emt 0:01:27]} 7. a3 {[%emt 0:02:09]} d6 {[%emt 0:02:42]} 8. Be3 {[%emt 0:06:59]} Be7 {[%emt 0:01:46]} 9. Qd2 {[%emt 0:01:08]} O-O {[%emt 0:02:38]} 10. O-O {[%emt 0:01:11]} Nbd7 {[%emt 0:03:06]} 11. Nb3 {[%emt 0:05:45]} b5 {[%emt 0:03:06]} 12. f4 {[%emt 0:03:51]} Bb7 {[%emt 0:12:20]} 13. Bf3 {[%emt 0:04:09]} Rac8 {[%emt 0:14:07]} 14. Qf2 {[%emt 0:07:05]} d5 {[%emt 0:08:15]} 15. exd5 {[%emt 0:03:28]} exd5 {[%emt 0:08:49]} 16. Rad1 {[%emt 0:08:49][%cal Ob3d4] The position is equal.} Ne4 {[%emt 0:03:54]} (16... Rfe8 $5) 17. Bxe4 {[%emt 0:03:39]} dxe4 {[%emt 0:00:21]} 18. Nd5 {[%emt 0:08:42]} (18. Nd4 $11 {remains equal.}) 18... Bxd5 $17 {[%emt 0:04:41]} (18... Qxc2 $2 {too greedy.} 19. Nxe7+ Kh8 20. Qxc2 (20. Rxd7 Qxb3 21. Rxb7 Rcd8 $18) 20... Rxc2 21. Rxd7 $18) 19. Rxd5 {[%emt 0:01:45]} Nf6 {[%emt 0:03:42]} (19... Qxc2 $2 {is the wrong capture.} 20. Qxc2 (20. Rxd7 Qxb3 21. Rxe7 Rc2 $18) 20... Rxc2 21. Rxd7 $18) 20. Rd2 {[%emt 0:01:09]} Ng4 {[%emt 0:06:44]} 21. Qe2 {[%emt 0:06:57]} Nxe3 {[%emt 0:03:51]} 22. Qxe3 {[%emt 0:00:24]} f5 {[%emt 0:00:55]} 23. Rfd1 {[%emt 0:04:19]} Bf6 {[%emt 0:03:46]} 24. c3 {[%emt 0:03:54]} Qf7 {[%emt 0:02:08]} (24... Rfd8 $15) 25. Nd4 {[%emt 0:10:24]} Be7 {[%emt 0:00:30]} 26. Kh1 {[%emt 0:00:30]} h6 {[%emt 0:00:30]} 27. g3 {[%emt 0:00:30]} Bc5 {[%emt 0:00:30]} 28. Rg2 {[%emt 0:00:30]} h5 {[%emt 0:00:30]} 29. h3 {[%emt 0:00:30]} (29. Rgd2 $15) 29... Rcd8 {[%emt 0:00:30]} 30. Qe2 {[%emt 0:00:30]} Rd6 {[%emt 0:00:30] Dodges Nc6} 31. Nc2 {[%emt 0:00:30]} (31. Qe3 $17 {was necessary.}) 31... Rfd8 $19 {[%emt 0:00:30]} 32. Rxd6 {[%emt 0:00:30]} Rxd6 {[%emt 0:00:30]} 33. g4 $2 {[%emt 0:00:30]} (33. h4 {is a better chance.}) 33... Rd3 {[%emt 0:00:30] [#] White must now prevent ...Qd5.} 34. Rh2 {[%emt 0:00:30]} Qd7 {[%emt 0:00:30] ( -> ...Rd1+)} 35. gxh5 {[%emt 0:00:30]} Rd1+ {[%emt 0:00:30] Black mates.} 36. Ne1 {[%emt 0:00:30]} Qd3 {[%emt 0:00:30]} 37. h4 {[%emt 0:00:30] White is weak on the dark squares} Qb1 {[%emt 0:00:30]} 38. Qc2 {[%emt 0:00:30]} Rxe1+ {[%emt 0:00:30] Weighted Error Value: White=0.77/Black=0.11 (very precise) .  Mistake:       	White=4     	Black=1      Inaccurate:     	White=6     	Black=3      OK:         	White=4     	Black=9      Best:        	---       	Black=2} 0-1

[Event "Romanian-ch Youth Girls U16 2024"]
[Site "Eforie Nord"]
[Date "2024.04.13"]
[Round "2.2"]
[White "Criveanu, Maria"]
[Black "Plotic, Patricia-Stefania"]
[Result "1-0"]
[ECO "C45"]
[WhiteElo "1762"]
[BlackElo "1499"]
[Annotator "NA RC COMBH"]
[PlyCount "51"]
[EventDate "2024.04.10"]
[EventType "swiss"]
[EventCountry "ROU"]
[SourceTitle "playchess.com"]
[Source "ChessBase"]
[SourceQuality "1"]
[TimeControl "5400+30"]

1. e4 {[%emt 0:00:02]} e5 {[%emt 0:00:17]} 2. Nf3 {[%emt 0:00:07]} Nc6 {[%emt 0:00:16]} 3. d4 {[%emt 0:00:14]} exd4 {[%emt 0:03:36]} 4. Nxd4 {[%emt 0:00:11]} Bc5 {[%emt 0:00:49]} 5. Nb3 {[%emt 0:00:25]} Bb6 {[%emt 0:00:58]} 6. Nc3 {[%emt 0:00:34]} d6 {[%emt 0:04:34]} 7. Qe2 {[%emt 0:02:05]} Nf6 {[%emt 0:02:18]} 8. Bg5 {[%emt 0:03:55]} Be6 {[%emt 0:01:04]} 9. Nd5 {[%emt 0:13:36]} Nd4 {[%emt 0:08:21]} 10. Nxd4 {[%emt 0:04:30]} Bxd4 {[%emt 0:00:14]} 11. c3 {[%emt 0:03:58]} Bc5 {[%emt 0:02:29]} 12. O-O-O {[%emt 0:05:53]} c6 {[%emt 0:09:27]} 13. e5 {[%emt 0:09:13]} cxd5 {[%emt 0:05:10]} 14. exf6 {[%emt 0:00:30]} gxf6 {[%emt 0:00:08]} 15. Qb5+ {[%emt 0:07:09]} Qd7 {[%emt 0:01:35]} 16. Qxd7+ {[%emt 0:02:57]} Kxd7 {[%emt 0:01:36]} 17. Bxf6 {[%emt 0:00:15]} Bxf2 {[%emt 0:12:52]} 18. Bb5+ {[%emt 0:08:14]} Kc7 {[%emt 0:00:29]} 19. Bxh8 {[%emt 0:00:20]} Rxh8 {[%emt 0:00:06]} 20. Rhf1 {[%emt 0:06:32]} Bc5 {[%emt 0:01:40]} 21. Be2 {[%emt 0:02:42]} Kd7 {[%emt 0:01:52]} 22. Bf3 {[%emt 0:01:41]} Rg8 {[%emt 0:05:27]} 23. g3 {[%emt 0:04:54]} Rg5 {[%emt 0:09:25]} 24. Bg2 {[%emt 0:06:41]} Bf5 {[%emt 0:00:00]} 25. Rxf5 {[%emt 0:00:30]} Rxf5 {[%emt 0:00:00]} 26. Bh3 {[%emt 0:00:30]} 1-0

[Event "Romanian-ch Youth Girls U16 2024"]
[Site "Eforie Nord"]
[Date "2024.04.13"]
[Round "3.1"]
[White "Maria, Lia-Alexandra"]
[Black "Criveanu, Maria"]
[Result "1/2-1/2"]
[ECO "C60"]
[WhiteElo "1924"]
[BlackElo "1762"]
[Annotator "TA"]
[PlyCount "69"]
[EventDate "2024.04.10"]
[EventType "swiss"]
[EventCountry "ROU"]
[SourceTitle "playchess.com"]
[Source "ChessBase"]
[SourceQuality "1"]
[TimeControl "5400+30"]

{[%evp 18,69,38,36,48,34,53,68,60,28,64,35,71,92,70,79,71,43,31,0,116,110,108,-14,-13,-20,-18,-274,-269,-395,-390,-393,-370,-378,-295,-520,-381,-482,-479,-470,-481,-450,-274,-387,-304,-277,-291,-277,-270,-314,-297,-314,-300,-321]} 1. e4 {[%emt 0:00:06]} e5 {[%emt 0:00:06]} 2. Nf3 {[%emt 0:00:05]} Nc6 {[%emt 0:00:06]} 3. Bb5 {[%emt 0:00:05]} a6 {[%emt 0:00:11]} 4. Ba4 {[%emt 0:00:04]} d6 {[%emt 0:00:21]} 5. c3 {[%emt 0:09:12]} Bd7 {[%emt 0:01:10]} 6. O-O {[%emt 0:00:44]} Nf6 {[%emt 0:02:36]} 7. Re1 {[%emt 0:00:49]} g6 {[%emt 0:00:43]} 8. h3 {[%emt 0:00:49]} Bg7 {[%emt 0:01:03]} 9. d4 {[%emt 0:06:36]} O-O {[%emt 0:02:12]} 10. Nbd2 {[%emt 0:02:47]} Qe8 {[%emt 0:04:18][%cal Oc6d4]} 11. Bb3 {[%emt 0:03:29]} Nh5 {[%emt 0:04:02][%cal Re5d4]} 12. Nf1 {[%emt 0:02:51]} Kh8 {[%emt 0:05:32] White is slightly better.} 13. Bg5 {[%emt 0:01:51][%cal Bc1g5,Bg5e3,Be3c5][%mdl 32]} h6 {[%emt 0:02:57]} 14. Be3 {[%emt 0:13:44]} f5 {[%emt 0:12:02]} 15. exf5 {[%emt 0:01:59]} gxf5 {[%emt 0:00:14]} 16. dxe5 {[%emt 0:01:40]} dxe5 {[%emt 0:00:28]} 17. Bc5 {[%emt 0:02:18] White is more active.} Rf6 {[%emt 0:01:08]} 18. Ne3 {[%emt 0:02:25]} Be6 {[%emt 0:07:48]} (18... Nf4 $1 $11) 19. Bxe6 $16 {[%emt 0:22:06]} Qxe6 {[%emt 0:02:31] [#]} 20. Nd5 {[%emt 0:00:56] Repels Nf4} (20. Nxe5 $1 $16 Nxe5 (20... Qxe5 $2 21. Nd5 $18) 21. Qxh5) 20... Rd8 $11 {[%emt 0:05:27]} 21. c4 {[%emt 0:00:35][%cal Of3e5] Nxe5! would now be deadly.} Nf4 {[%emt 0:19:46]} 22. Nd4 $2 {[%emt 0:07:00][%mdl 8192] [#] This move loses the game for White.} Rxd5 $1 $19 {[%emt 0:07:08]} (22... exd4 $2 23. Rxe6 (23. Nxf4 Qxc4 24. Qc1 Qf7 $15) 23... Nxe6 24. Nxf6 Bxf6 25. Qh5 $18) (22... Nxd4 23. Nxf4 Qxc4 24. Rc1 $14 (24. Rxe5 $2 Rc6 $19) (24. Rxe5 $2 Rc6 $19)) 23. cxd5 {[%emt 0:04:28]} (23. Nxe6 {was the only defense.} Rxd1 24. Raxd1 Nxe6 (24... Rxe6 25. Be3 $17) 25. Be3) 23... Qxd5 {[%emt 0:00:11][%csl Gf4][%cal Rd5g2]} (23... exd4 $2 24. dxe6 Nxe6 25. Ba3 $18) 24. Qf3 {[%emt 0:01:58]} Qxc5 {[%emt 0:01:25]} 25. Nxc6 {[%emt 0:01:12]} Rxc6 {[%emt 0:01:48]} 26. Red1 $2 {[%emt 0:04:59]} (26. Rec1 {is a better defense.} Qb5 (26... Qxc1+ 27. Rxc1 Rxc1+ 28. Kh2 $17) 27. Rxc6 bxc6 (27... Qxc6 $2 28. Qxc6 bxc6 29. Rd1 $19) 28. Re1) 26... Qe7 {[%emt 0:06:31]} 27. g3 {[%emt 0:01:45]} Nxh3+ {[%emt 0:01:07]} 28. Kg2 {[%emt 0:00:36]} Ng5 {[%emt 0:00:15][%cal Bh3g5,Bg5e6,Be6d4][%mdl 32]} 29. Qxf5 {[%emt 0:00:13]} Ne6 {[%emt 0:02:43]} 30. Rh1 {[%emt 0:02:55]} (30. Rac1 $142) 30... Qc5 {[%emt 0:02:28]} 31. Rad1 {[%emt 0:02:21] Dodges Qd5+. Black has a decisive advantage.} Nd4 {[%emt 0:04:23]} 32. Qe4 {[%emt 0:01:32]} Rb6 {[%emt 0:01:42]} 33. Rc1 {[%emt 0:00:54]} Qe7 {[%emt 0:00:43]} 34. Rhd1 {[%emt 0:00:56] aiming for Rxd4.} Qf7 {[%emt 0:02:25]} ({And not} 34... Rxb2 35. Rxd4 Qf6 36. Rd3 Rxf2+ (36... Qxf2+ 37. Kh3 $11) 37. Kh1 $11) 35. Rd2 {[%emt 0:02:00][%mdl 32768] Weighted Error Value: White=0.48/Black=0.40.  Loses game:     	White=1     	---        Mistake:       	White=4     	Black=1      Inaccurate:     	White=4     	Black=3      OK:         	White=10    	Black=7      Best:        	White=1     	---        Strong:       	---       	Black=1     . An unexpected result.} 1/2-1/2

[Event "Romanian-ch Youth Girls U16 2024"]
[Site "Eforie Nord"]
[Date "2024.04.13"]
[Round "3.2"]
[White "Marcu, Daria-Ana"]
[Black "Pandelescu, Maria-Catalina"]
[Result "1-0"]
[ECO "B38"]
[WhiteElo "1744"]
[BlackElo "1730"]
[Annotator "NA RC COMBH"]
[PlyCount "77"]
[EventDate "2024.04.10"]
[EventType "swiss"]
[EventCountry "ROU"]
[SourceTitle "playchess.com"]
[Source "ChessBase"]
[SourceQuality "1"]
[TimeControl "5400+30"]

1. e4 {[%emt 0:00:02]} c5 {[%emt 0:00:14]} 2. Nf3 {[%emt 0:00:06]} Nc6 {[%emt 0:00:13]} 3. d4 {[%emt 0:00:08]} cxd4 {[%emt 0:00:11]} 4. Nxd4 {[%emt 0:00:06]} g6 {[%emt 0:00:23]} 5. c4 {[%emt 0:00:11]} Bg7 {[%emt 0:00:34]} 6. Be3 {[%emt 0:00:08]} Nh6 {[%emt 0:00:33]} 7. h3 {[%emt 0:00:44]} O-O {[%emt 0:01:39]} 8. Nxc6 {[%emt 0:00:21]} dxc6 {[%emt 0:00:42]} 9. Qc1 {[%emt 0:00:18]} Qa5+ {[%emt 0:05:31]} 10. Nc3 {[%emt 0:02:51]} Qh5 {[%emt 0:01:24]} 11. Be2 {[%emt 0:01:00]} Bg4 {[%emt 0:00:39]} 12. f3 {[%emt 0:04:20]} f5 {[%emt 0:09:06]} 13. Bf2 {[%emt 0:25:17]} Rf7 {[%emt 0:15:59]} 14. fxg4 {[%emt 0:07:40]} fxg4 {[%emt 0:01:03]} 15. Qe3 {[%emt 0:00:47]} Rd8 {[%emt 0:06:44]} 16. Rd1 {[%emt 0:01:17]} Rxd1+ {[%emt 0:07:24]} 17. Bxd1 {[%emt 0:02:21]} b6 {[%emt 0:01:19]} 18. c5 {[%emt 0:02:22]} b5 {[%emt 0:05:39]} 19. Bb3 {[%emt 0:01:28]} b4 {[%emt 0:03:12]} 20. Nd1 {[%emt 0:01:28]} Qe5 {[%emt 0:02:54]} 21. Bxf7+ {[%emt 0:00:46]} Nxf7 {[%emt 0:00:33]} 22. O-O {[%emt 0:03:24]} gxh3 {[%emt 0:01:43]} 23. Qxh3 {[%emt 0:00:25]} Qxe4 {[%emt 0:02:53]} 24. Re1 {[%emt 0:01:40]} Qd5 {[%emt 0:01:25]} 25. Qc8+ {[%emt 0:00:39]} Bf8 {[%emt 0:00:20]} 26. Qe6 {[%emt 0:00:40]} Qxe6 {[%emt 0:03:55]} 27. Rxe6 {[%emt 0:00:07]} Nd8 {[%emt 0:00:04]} 28. Re4 {[%emt 0:00:14]} a5 {[%emt 0:00:23]} 29. b3 {[%emt 0:01:42]} Kf7 {[%emt 0:01:19]} 30. Nb2 {[%emt 0:00:12]} Bg7 {[%emt 0:01:04]} 31. Nc4 {[%emt 0:00:21]} Nb7 {[%emt 0:00:09]} 32. Bh4 {[%emt 0:02:31]} Nxc5 {[%emt 0:02:49]} 33. Rxe7+ {[%emt 0:00:10]} Kg8 {[%emt 0:00:32]} 34. Re8+ {[%emt 0:00:15]} Bf8 {[%emt 0:00:22]} 35. Be7 {[%emt 0:00:18]} Nd7 {[%emt 0:01:27]} 36. Bxf8 {[%emt 0:01:29]} Nxf8 {[%emt 0:00:08]} 37. Nxa5 {[%emt 0:00:09]} Kf7 {[%emt 0:00:21]} 38. Rc8 {[%emt 0:00:18]} h5 {[%emt 0:01:20]} 39. Nxc6 {[%emt 0:00:10]} 1-0

[Event "Romanian-ch Youth Girls U16 2024"]
[Site "Eforie Nord"]
[Date "2024.04.14"]
[Round "4.1"]
[White "Pandelescu, Maria-Catalina"]
[Black "Maria, Lia-Alexandra"]
[Result "0-1"]
[ECO "A36"]
[WhiteElo "1730"]
[BlackElo "1924"]
[Annotator "TA"]
[PlyCount "70"]
[EventDate "2024.04.10"]
[EventType "swiss"]
[EventCountry "ROU"]
[SourceTitle "playchess.com"]
[Source "ChessBase"]
[SourceQuality "1"]
[TimeControl "5400+30"]

{[%evp 21,70,-7,26,17,21,23,47,0,0,-41,-29,-35,-12,-15,-16,-41,-41,-56,-52,-79,-73,-72,-35,-238,-115,-323,-316,-356,-364,-625,-609,-683,-564,-899,-881,-881,-814,-1064,-1033,-1917,-1930,-29985,-29983,-29983,-29984,-29991,-29990,-29992,-29993,-29993,-29994]} 1. e4 {[%emt 0:00:04]} c5 {[%emt 0:00:07]} 2. c4 {[%emt 0:00:11]} Nc6 {[%emt 0:00:04]} 3. Nc3 {[%emt 0:00:05]} g6 {[%emt 0:00:07]} 4. g3 {[%emt 0:00:19]} Bg7 {[%emt 0:00:21]} 5. Bg2 {[%emt 0:00:29]} e6 {[%emt 0:00:35]} 6. Nge2 {[%emt 0:01:31]} d6 {[%emt 0:00:43]} 7. O-O {[%emt 0:01:27]} Nge7 {[%emt 0:00:45]} 8. d3 {[%emt 0:01:05]} O-O {[%emt 0:04:39]} 9. Be3 {[%emt 0:02:41]} Nd4 {[%emt 0:00:14]} 10. Rb1 {[%emt 0:01:30]} Nec6 {[%emt 0:20:07]} 11. a3 {[%emt 0:07:38]} a5 {[%emt 0:05:23][%cal Ba7a5,Ba5a4][%mdl 32]} 12. Nb5 {[%emt 0:11:15]} Nxe2+ {[%emt 0:07:06]} 13. Qxe2 {[%emt 0:00:35]} a4 {[%emt 0:00:08]} 14. Rfd1 {[%emt 0:08:26]} (14. f4 $14 {is more appropriate.}) 14... Nd4 {[%emt 0:00:55]} 15. Bxd4 {[%emt 0:01:11]} cxd4 {[%emt 0:02:32]} 16. b3 {[%emt 0:04:14]} h5 {[%emt 0:10:15]} 17. bxa4 {[%emt 0:04:10]} Rxa4 {[%emt 0:01:06]} 18. Qc2 {[%emt 0:01:06]} Ra6 {[%emt 0:00:22]} 19. Qb3 {[%emt 0:05:12]} h4 {[%emt 0:03:21]} 20. Rbc1 {[%emt 0:05:53]} e5 {[%emt 0:09:33]} 21. c5 {[%emt 0:11:13]} h3 {[%emt 0:01:56] [#] White must now prevent ...Be6.} 22. Bh1 $2 {[%emt 0:00:50]} (22. Bf1 $15) 22... Bg4 {[%emt 0:04:35]} (22... Bh6 $19 {has better winning chances.} 23. Rc4 dxc5 24. Rxc5 Rc6 (24... Be6 $2 25. Qb2 $19) 25. Rxc6 (25. Rxe5 $2 {too greedy.} Bg4 $19) 25... bxc6) 23. Re1 {[%emt 0:06:29]} (23. Nxd6 $17 Bxd1 24. Rxd1) 23... Bh6 $19 {[%emt 0:02:48]} 24. Rc2 {[%emt 0:03:42]} dxc5 {[%emt 0:05:44]} 25. f3 $2 {[%emt 0:08:01]} (25. Rb1) 25... Be6 {[%emt 0:02:29]} 26. Qb2 {[%emt 0:01:11]} Qb6 {[%emt 0:01:27] [#] Hoping for ...Be3+. White is weak on the dark squares} 27. Rd1 {[%emt 0:04:28]} Ra5 {[%emt 0:00:59]} 28. Rb1 {[%emt 0:03:23]} Bd7 {[%emt 0:02:21]} 29. a4 {[%emt 0:02:41]} Rxa4 {[%emt 0:00:15]} 30. Rc4 {[%emt 0:00:41]} Ra5 {[%emt 0:00:29][%cal Ra5b5]} 31. Qc2 {[%emt 0:00:29]} Rxb5 {[%emt 0:00:13] Black mates.} 32. Rxb5 {[%emt 0:00:07]} Bxb5 {[%emt 0:00:10]} 33. Qb3 {[%emt 0:01:39]} Qa6 {[%emt 0:00:35]} 34. Rxc5 {[%emt 0:00:14]} Be3+ {[%emt 0:00:06]} 35. Kf1 {[%emt 0:00:09]} Bxd3+ {[%emt 0:00:06] Weighted Error Value: White=1.16/Black=0.19 (very precise) .  Loses game:     	White=2     	---        Mistake:       	White=2     	Black=1      Inaccurate:     	White=2     	Black=1      OK:         	White=3     	Black=5} 0-1